bitfinex/quotes_SOLUSD_20250207
["timestamp","ask_amount","ask_price","bid_price","bid_amount"]
[1738922527030,0.344473,197.15,197.13,0.76]
[1738922527325,13.75632153,197.15,197.14,0.76]
[1738922527533,13.66282853,197.14,197.13,0.76]
[1738922527713,43.18768482,197.14,197.13,0.76]
[1738922528643,29.52485629,197.14,197.13,0.76]
[1738922529139,0.093493,197.15,197.14,0.76]
[1738922529345,0.093493,197.15,197.14,20.76]
[1738922530017,0.093493,197.15,197.14,0.76]
[1738922530218,43.28117782,197.15,197.14,0.76]
[1738922530629,29.61834929,197.15,197.14,0.76]
[1738922530835,43.28117782,197.15,197.14,0.76]
[1738922531128,48.35337782,197.15,197.14,0.76]
[1738922531326,43.28117782,197.15,197.14,0.76]
[1738922532537,48.35337782,197.15,197.14,0.76]
[1738922532916,43.28117782,197.15,197.14,0.76]
[1738922533927,29.61834929,197.15,197.14,0.76]
[1738922534732,43.28117782,197.15,197.14,0.76]
[1738922535247,48.35337782,197.15,197.14,0.76]
[1738922535551,43.28117782,197.15,197.14,0.76]
[1738922535711,29.61834929,197.15,197.14,0.76]
[1738922536113,0.093493,197.15,197.14,5.8325]
[1738922536329,43.28117782,197.15,197.14,0.76]
[1738922536910,29.61834929,197.15,197.14,0.76]
[1738922537109,29.61834929,197.15,197.14,5.8325]
[1738922537314,0.093493,197.15,197.14,5.8325]
[1738922537629,29.61834929,197.15,197.14,0.76]
[1738922538235,0.25098,197.14,197.13,0.823]
[1738922538442,43.18768482,197.14,197.13,0.823]
[1738922539322,29.52485629,197.14,197.13,0.823]
[1738922543033,43.18768482,197.14,197.13,0.823]
[1738922543240,48.26018482,197.14,197.13,0.823]
[1738922543921,48.26018482,197.14,197.13,0.063]
[1738922544621,48.36732939,197.14,197.13,0.063]
[1738922544939,48.49281939,197.14,197.13,0.063]
[1738922545328,15.33681853,197.13,197.1,0.76]
[1738922545531,72.71254111,197.11,197.1,0.76]
[1738922546445,13.53733853,197.1,197.09,0.76]
[1738922547343,72.58705111,197.1,197.09,0.76]
[1738922547724,77.66055111,197.1,197.09,0.76]
[1738922548326,43.06219482,197.1,197.09,0.76]
[1738922548540,29.52485629,197.1,197.09,0.76]
[1738922548748,0.10714457,197.14,197.1,0.76]
[1738922548749,29.52485629,197.12,197.1,0.76]
[1738922548926,29.52485629,197.12,197.11,0.76]
[1738922549543,43.06219482,197.12,197.11,0.76]
[1738922549744,43.18768482,197.12,197.11,0.76]
[1738922550058,43.18768482,197.12,197.06,20.0]
[1738922550059,13.66282853,197.11,197.08,0.76]
[1738922550237,43.06219482,197.09,197.08,0.76]
[1738922550832,0.12549,197.08,197.07,0.76]
[1738922551229,29.52485629,197.08,197.07,0.76]
[1738922552451,43.06219482,197.08,197.07,0.76]
[1738922552827,43.18768482,197.08,197.07,0.76]
[1738922553028,29.52485629,197.08,197.07,0.76]
[1738922553247,29.52485629,197.08,197.07,5.8343]
[1738922553446,29.52485629,197.09,197.08,0.76]
[1738922555339,43.06219482,197.09,197.08,0.76]
[1738922555837,43.18768482,197.09,197.08,0.76]
[1738922556026,0.12549,197.08,197.07,0.76]
[1738922556229,0.12549,197.08,197.06,0.76]
[1738922556230,43.18768482,197.08,197.06,0.76]
[1738922556431,29.65034629,197.07,197.06,0.76]
[1738922556631,43.18768482,197.07,197.06,0.76]
[1738922557247,13.53733853,197.06,197.05,0.76]
[1738922557550,43.06219482,197.06,197.05,0.76]
[1738922558065,48.26228482,197.06,197.04,0.76]
[1738922558252,0.25098,197.04,197.03,0.76]
[1738922558455,29.77583629,197.04,197.03,0.76]
[1738922558663,29.77583629,197.04,197.01,0.03]
[1738922558664,13.53733853,197.03,197.02,0.76]
[1738922558830,43.06219482,197.03,197.02,0.76]
[1738922559460,29.52485629,197.04,197.03,0.76]
[1738922559635,29.52485629,197.06,197.05,0.76]
[1738922559840,29.52485629,197.08,197.05,0.76]
[1738922560138,29.52485629,197.07,197.05,0.76]
[1738922560342,29.52485629,197.07,197.06,0.76]
[1738922561436,43.06219482,197.07,197.06,0.76]
[1738922562053,29.52485629,197.07,197.06,0.76]
[1738922563756,43.18768482,197.07,197.06,0.76]
[1738922563954,43.06219482,197.07,197.06,0.76]
[1738922564154,29.52485629,197.07,197.06,0.76]
[1738922564556,29.61788422,197.07,197.06,0.76]
[1738922565358,43.15522275,197.07,197.06,0.76]
[1738922567162,29.61788422,197.07,197.06,0.76]
[1738922567967,43.15522275,197.07,197.06,0.76]
[1738922568175,13.53733853,197.06,197.05,0.76]
[1738922568358,43.06219482,197.06,197.05,0.76]
[1738922568852,48.13669482,197.06,197.05,0.76]
[1738922569352,43.18768482,197.06,197.05,0.76]
[1738922569537,29.52485629,197.06,197.05,0.76]
[1738922569742,29.61788422,197.07,197.06,0.76]
[1738922569938,29.61788422,197.07,197.04,0.76]
[1738922570142,5.16732793,197.07,197.04,0.76]
[1738922570444,13.66282853,197.06,197.04,0.76]
[1738922570748,43.06219482,197.05,197.04,0.76]
[1738922571157,29.52485629,197.05,197.04,0.76]
[1738922573755,43.18768482,197.05,197.04,0.76]
[1738922574467,13.53733853,197.04,197.03,0.76]
[1738922574642,29.65034629,197.04,197.03,0.76]
[1738922575153,13.66282853,197.03,197.02,0.76]
[1738922575349,43.18768482,197.03,197.02,0.76]
[1738922575544,48.26298482,197.03,197.02,0.76]
[1738922576357,0.12549,197.02,197.01,0.79]
[1738922576556,43.18768482,197.02,197.01,0.03]
[1738922576751,43.18768482,197.02,197.01,0.79]
[1738922577856,43.06219482,197.02,197.01,0.79]
[1738922580279,48.26328482,197.02,197.01,0.79]
[1738922580576,77.78814111,197.02,197.01,0.79]
[1738922580749,43.06219482,197.02,197.01,0.79]
[1738922580949,48.13779482,197.02,197.01,0.79]
[1738922581151,48.13779482,197.02,197.01,0.03]
[1738922581152,48.26328482,197.02,197.01,0.03]
[1738922581350,48.26328482,197.02,197.01,0.79]
[1738922581559,43.06219482,197.02,197.01,0.79]
[1738922582380,43.18768482,197.02,197.01,0.79]
[1738922582674,48.26328482,197.02,197.01,0.79]
[1738922582873,43.18768482,197.02,197.01,0.79]
[1738922583746,29.52485629,197.02,197.01,0.79]
[1738922584062,0.09302793,197.07,197.06,0.76]
[1738922584580,0.19652894,197.07,197.06,0.76]
[1738922584871,29.72138523,197.07,197.06,0.76]
[1738922585170,43.38421376,197.07,197.06,0.76]
[1738922585485,43.29118583,197.07,197.06,0.76]
[1738922585654,29.6283573,197.07,197.06,0.76]
[1738922586061,29.6283573,197.07,197.06,137.96]
[1738922586268,0.10350101,197.07,197.06,137.96]
[1738922586650,0.10350101,197.07,197.06,143.0345]
[1738922587048,0.10350101,197.07,197.06,137.96]
[1738922587251,29.6283573,197.07,197.06,137.96]
[1738922589565,0.25098,197.06,197.04,0.76]
[1738922589763,0.12549,197.04,197.02,0.76]
[1738922589985,29.65034629,197.03,197.02,0.76]
[1738922590690,18.56468968,197.03,197.02,0.76]
[1738922590980,32.10202821,197.03,197.02,0.76]
[1738922591283,32.22751821,197.03,197.02,0.76]
[1738922591657,32.10202821,197.03,197.02,0.76]
[1738922592163,32.22751821,197.03,197.02,0.76]
[1738922592364,13.66282853,197.02,197.01,0.79]
[1738922592568,73.10161163,197.02,197.01,0.79]
[1738922592884,73.10161163,197.02,196.97,0.76]
[1738922592885,0.25098,197.0,196.97,0.76]
[1738922593058,43.38222008,196.98,196.97,0.76]
[1738922593658,5.0769,196.97,196.96,0.063]
[1738922593865,48.45912008,196.97,196.96,0.063]
[1738922595280,48.45912008,196.97,196.96,0.823]
[1738922595588,48.45912008,196.97,196.96,0.063]
[1738922595810,48.45912008,196.97,196.96,0.823]
[1738922596176,48.45912008,196.97,196.96,0.063]
[1738922596393,48.45912008,196.97,196.96,0.823]
[1738922596598,48.45912008,196.97,196.96,0.063]
[1738922596780,48.45912008,196.97,196.96,0.823]
[1738922597100,43.25673008,196.97,196.96,0.823]
[1738922597397,29.71939155,196.97,196.96,0.823]
[1738922597700,29.71939155,196.98,196.97,0.76]
[1738922598078,29.71939155,197.01,197.0,0.76]
[1738922599601,13.66282853,197.0,196.99,0.76]
[1738922599902,43.38222008,197.0,196.99,0.76]
[1738922600275,43.25673008,197.0,196.99,0.76]
[1738922601799,29.71939155,197.0,196.99,0.76]
[1738922602179,0.12549,196.99,196.96,0.823]
[1738922602390,29.84488155,196.97,196.96,0.823]
[1738922603189,43.38222008,196.97,196.96,0.823]
[1738922603395,43.38222008,196.97,196.96,0.063]
[1738922603587,48.45912008,196.97,196.96,0.063]
[1738922604598,48.55227676,196.97,196.96,0.063]
[1738922605308,48.55227676,196.97,196.96,0.823]
[1738922605601,48.55227676,196.97,196.96,0.063]
[1738922607193,48.67776676,196.97,196.96,0.063]
[1738922609002,15.02831853,196.96,196.93,0.0001]
[1738922609190,13.78831853,196.93,196.88,0.063]
[1738922609390,13.78831853,196.93,196.88,0.823]
[1738922609391,43.38222008,196.89,196.88,0.823]
[1738922610222,43.38222008,196.89,196.88,0.063]
[1738922610391,29.97037155,196.89,196.88,0.823]
[1738922610591,29.84488155,196.89,196.88,0.823]
[1738922610998,29.71939155,196.9,196.88,0.823]
[1738922611522,0.25098,196.93,196.89,0.76]
[1738922612117,0.25098,196.93,196.92,0.76]
[1738922612318,43.38222008,196.93,196.92,0.76]
[1738922612610,15.07654853,196.92,196.91,0.76]
[1738922612993,0.25098,196.91,196.89,0.76]
[1738922613213,0.25098,196.91,196.9,0.76]
[1738922613411,0.25098,196.91,196.89,0.76]
[1738922613593,18.71693275,196.9,196.89,0.76]
[1738922614418,37.33297128,196.9,196.89,0.76]
[1738922615020,0.12549,196.89,196.88,0.823]
[1738922615798,18.71693275,196.89,196.88,0.823]
[1738922616215,18.59144275,196.89,196.88,0.823]
[1738922616417,18.59144275,196.92,196.91,0.76]
[1738922616614,18.59144275,196.94,196.92,0.76]
[1738922616800,18.59144275,196.94,196.93,0.76]
[1738922618218,18.84242275,196.94,196.93,0.76]
[1738922619014,13.66282853,196.93,196.89,0.76]
[1738922619210,18.84242275,196.9,196.89,0.76]
[1738922619409,13.66282853,196.89,196.88,0.063]
[1738922619612,32.25427128,196.89,196.88,0.063]
[1738922619923,18.59144275,196.89,196.88,0.823]
[1738922621133,18.59144275,196.9,196.88,5.9022]
[1738922621318,18.59144275,196.9,196.89,0.76]
[1738922622816,18.71693275,196.9,196.89,0.76]
[1738922623134,18.59144275,196.9,196.89,0.76]
[1738922623320,18.59144275,196.91,196.9,0.76]
[1738922623833,18.71693275,196.91,196.9,0.76]
[1738922624034,18.59144275,196.91,196.9,0.76]
[1738922624332,18.59144275,196.93,196.92,0.76]
[1738922624512,18.70039437,196.93,196.92,0.76]
[1738922625532,18.82588437,196.93,196.92,0.76]
[1738922626025,0.12549,196.92,196.91,0.76]
[1738922626243,0.12549,196.91,196.9,0.76]
[1738922626409,18.71693275,196.91,196.9,0.76]
[1738922627917,0.12549,196.9,196.88,0.823]
[1738922628119,18.71693275,196.89,196.88,0.823]
[1738922629135,18.59144275,196.89,196.88,0.823]
[1738922630748,39.07576128,196.89,196.88,0.063]
[1738922630948,13.66282853,196.88,196.86,0.063]
[1738922631122,18.84242275,196.87,196.86,0.063]
[1738922631438,32.25427128,196.87,196.86,0.063]
[1738922631951,13.66282853,196.86,196.84,0.0001]
[1738922632257,32.25427128,196.85,196.84,0.0001]
[1738922632749,37.33427128,196.85,196.84,0.0001]
[1738922633425,37.45976128,196.85,196.84,0.0001]
[1738922633633,32.12878128,196.82,196.81,0.79]
[1738922636450,18.71693275,196.82,196.81,0.79]
[1738922636933,18.59144275,196.83,196.81,0.79]
[1738922637137,18.59144275,196.83,196.82,0.76]
[1738922638040,18.59144275,196.83,196.81,5.111]
[1738922638041,18.59144275,196.85,196.84,0.76]
[1738922638235,18.59144275,196.87,196.86,0.76]
[1738922638743,18.59144275,196.91,196.9,0.76]
[1738922639039,18.59144275,196.91,196.86,142.2797]
[1738922639040,0.25098,196.9,196.89,0.76]
[1738922639220,32.25427128,196.9,196.89,0.76]
[1738922640225,18.71693275,196.9,196.89,0.76]
[1738922640429,18.59144275,196.91,196.9,0.76]
[1738922641024,18.59144275,196.92,196.9,0.76]
[1738922641328,0.17195162,196.93,196.92,0.76]
[1738922641517,0.17195162,196.93,196.92,157.96]
[1738922642120,0.17195162,196.93,196.92,158.96]
[1738922642324,0.17195162,196.93,196.92,181.62964275]
[1738922642531,0.17195162,196.93,196.92,163.0382]
[1738922643543,0.17195162,196.93,196.92,157.96]
[1738922643859,18.76339437,196.93,196.92,20.76]
[1738922644221,18.76339437,196.93,196.92,0.76]
[1738922644625,18.86371806,196.93,196.92,0.76]
[1738922645264,19.11469806,196.93,196.92,0.76]
[1738922645549,0.12549,196.92,196.91,0.76]
[1738922645729,50.84571403,196.92,196.89,0.76]
[1738922645930,0.25098,196.89,196.88,0.76]
[1738922646444,0.25098,196.89,196.81,6.5208]
[1738922646445,32.25427128,196.89,196.87,0.76]
[1738922646649,0.12549,196.87,196.86,0.76]
[1738922646837,29.88006834,196.87,196.86,0.76]
[1738922647651,29.75457834,196.87,196.86,0.76]
[1738922647851,29.75457834,196.88,196.87,0.76]
[1738922648049,29.75457834,196.89,196.88,0.76]
[1738922648235,29.75457834,196.89,196.88,137.96]
[1738922648435,29.88006834,196.89,196.88,137.96]
[1738922648632,29.88006834,196.89,196.88,0.76]
[1738922650547,29.75457834,196.89,196.88,0.76]
[1738922652430,13.66282853,196.88,196.87,0.76]
[1738922652645,43.41740687,196.88,196.87,0.76]
[1738922654154,48.49660687,196.88,196.87,0.76]
[1738922654538,29.88006834,196.88,196.87,0.76]
[1738922655541,29.75457834,196.88,196.87,137.96]
[1738922657231,5.26709,196.91,196.9,0.76]
[1738922657232,0.063,196.91,196.9,0.76]
[1738922657648,0.063,196.91,196.9,137.96]
[1738922657857,29.81757834,196.91,196.9,137.96]
[1738922659933,0.063,196.91,196.9,143.0387]
[1738922661953,0.063,196.91,196.9,144.0387]
[1738922663381,0.063,196.91,196.9,144.16419]
[1738922663877,0.063,196.91,196.9,145.16419]
[1738922664173,0.063,196.91,196.9,143.16419]
[1738922664377,0.063,196.91,196.9,144.16419]
[1738922664579,0.15849167,196.91,196.9,144.16419]
[1738922665066,0.15849167,196.91,196.9,144.28968]
[1738922665451,0.15849167,196.91,196.9,143.28968]
[1738922665674,0.15849167,196.91,196.9,144.28968]
[1738922666677,0.15849167,196.91,196.9,225.88968]
[1738922667170,0.15849167,196.91,196.9,256.64425834]
[1738922667371,0.15849167,196.91,196.9,255.64425834]
[1738922667575,0.15849167,196.91,196.9,225.88968]
[1738922667889,0.15849167,196.91,196.9,219.56]
[1738922668058,29.91307001,196.91,196.9,137.96]
[1738922668382,29.91307001,196.91,196.9,0.76]
[1738922668780,18.74552438,196.91,196.9,0.76]
[1738922670566,29.89175192,196.91,196.9,0.76]
[1738922671465,30.01724192,196.91,196.9,0.76]
[1738922672684,29.89175192,196.91,196.9,0.76]
[1738922674169,30.01724192,196.91,196.9,0.76]
[1738922675471,35.09564192,196.91,196.9,0.76]
[1738922675665,29.89175192,196.91,196.9,0.76]
[1738922676268,29.89175192,196.91,196.9,143.0387]
[1738922676269,0.15849167,196.91,196.9,143.0387]
[1738922679983,29.89175192,196.91,196.9,137.96]
[1738922680482,0.15849167,196.91,196.9,137.96]
[1738922681073,0.15849167,196.91,196.9,143.0387]
[1738922684573,0.26914403,196.91,196.9,143.0387]
[1738922685400,0.17365236,196.91,196.9,143.0387]
[1738922687502,0.17365236,196.91,196.9,224.6387]
[1738922688786,5.236e-05,196.91,196.9,261.71134025]
[1738922688993,5.236e-05,196.91,196.9,262.71134025]
[1738922689189,5.236e-05,196.91,196.9,276.12318878]
[1738922689500,0.16722693,196.93,196.92,1.88549]
[1738922689694,0.16722693,196.93,196.92,257.25833998]
[1738922689892,0.16722693,196.93,196.92,256.49695025]
[1738922690293,0.16722693,196.93,196.92,255.49695025]
[1738922690493,0.16722693,196.93,196.92,256.49695025]
[1738922690707,0.16722693,196.93,196.92,244.32827019]
[1738922691295,0.16722693,196.93,196.92,224.6382]
[1738922692307,0.16722693,196.93,196.92,225.6382]
[1738922692506,0.16722693,196.93,196.92,224.6382]
[1738922692687,0.16722693,196.93,196.92,244.45376019]
[1738922693088,2.693e-05,196.93,196.92,245.45376019]
[1738922693299,2.693e-05,196.93,196.92,243.45376019]
[1738922693498,2.693e-05,196.93,196.92,224.76369]
[1738922693697,2.693e-05,196.93,196.92,224.6382]
[1738922693902,18.56460712,196.93,196.92,219.56]
[1738922694708,18.56460712,196.93,196.92,0.76]
[1738922696719,2.693e-05,196.93,196.92,143.0382]
[1738922697613,18.56460712,196.93,196.92,137.96]
[1738922699813,18.56460712,196.93,196.92,0.76]
[1738922700020,2.693e-05,196.93,196.92,0.76]
[1738922700206,18.56460712,196.93,196.92,0.76]
[1738922700592,34.94181936,196.93,196.92,0.76]
[1738922701029,29.73822936,196.93,196.92,0.76]
[1738922701814,31.30142936,196.93,196.92,137.96]
[1738922702213,29.73822936,196.93,196.92,137.96]
[1738922702413,29.86371936,196.93,196.92,137.96]
[1738922702597,35.00461936,196.93,196.92,137.96]
[1738922703508,29.80122936,196.93,196.92,137.96]
[1738922703816,0.06302693,196.93,196.92,137.96]
[1738922704003,29.80122936,196.93,196.92,137.96]
[1738922704211,0.06302693,196.93,196.92,143.0382]
[1738922704915,29.80122936,196.93,196.92,137.96]
[1738922705130,29.80122936,196.93,196.92,0.76]
[1738922705502,29.80120243,196.93,196.92,0.76]
[1738922706004,35.00459243,196.93,196.91,0.76]
[1738922706207,0.12549,196.91,196.9,0.76]
[1738922706389,61.24648486,196.91,196.86,137.96]
[1738922706595,29.73820243,196.87,196.86,0.76]
[1738922707295,29.86369243,196.87,196.86,0.76]
[1738922708719,35.06858243,196.87,196.86,0.76]
[1738922709017,0.12549,196.86,196.85,0.76]
[1738922709202,5.0794,196.87,196.86,0.76]
[1738922709407,29.73820243,196.87,196.86,0.76]
[1738922709801,29.98918243,196.87,196.86,0.76]
[1738922710126,29.98918243,196.87,196.85,0.76]
[1738922710127,0.12549,196.86,196.85,0.76]
[1738922710297,0.12549,196.86,196.84,0.03]
[1738922710298,0.12549,196.85,196.84,0.79]
[1738922710498,29.98918243,196.85,196.84,0.03]
[1738922710721,43.40103096,196.85,196.84,0.03]
[1738922711720,45.02973096,196.85,196.84,0.03]
[1738922712141,31.61788243,196.85,196.84,0.79]
[1738922712420,31.49239243,196.85,196.84,0.79]
[1738922712810,31.36690243,196.85,196.84,0.79]
[1738922713003,29.73820243,196.85,196.84,0.79]
[1738922713616,29.86369243,196.85,196.84,0.79]
[1738922713924,29.98918243,196.85,196.84,0.03]
[1738922714107,48.48103096,196.85,196.84,0.03]
[1738922719937,1.88338,196.83,196.82,0.03]
[1738922720145,31.62158243,196.83,196.82,0.79]
[1738922720599,31.62158243,196.83,196.82,0.03]
[1738922720803,31.62158243,196.83,196.82,0.79]
[1738922722705,38.98200409,196.83,196.82,0.03]
[1738922722932,13.66282853,196.82,196.81,0.03]
[1738922723104,50.87537965,196.82,196.81,0.03]
[1738922723924,0.25098,196.78,196.77,0.03]
[1738922724128,18.85725556,196.78,196.77,0.79]
[1738922724326,23.93905556,196.78,196.77,0.79]
[1738922724533,23.93905556,196.78,196.77,0.03]
[1738922725226,0.25098,196.77,196.76,0.063]
[1738922725424,32.26910409,196.77,196.76,0.063]
[1738922725624,32.26910409,196.77,196.72,0.76]
[1738922725810,18.85725556,196.73,196.72,0.76]
[1738922726210,18.60627556,196.73,196.72,0.76]
[1738922728736,18.60627556,196.75,196.73,0.76]
[1738922728947,18.60627556,196.76,196.75,0.76]
[1738922729149,18.60627556,196.79,196.78,0.76]
[1738922730113,1.75789,196.83,196.8,0.76]
[1738922730451,18.60627556,196.81,196.8,0.76]
[1738922730749,0.25098,196.8,196.78,0.76]
[1738922730959,0.12549,196.78,196.76,0.76]
[1738922731259,6.7129,196.83,196.81,0.76]
[1738922731433,0.25098,196.82,196.8,0.76]
[1738922732531,0.25098,196.82,196.79,0.76]
[1738922732726,0.12549,196.79,196.78,0.76]
[1738922732927,18.73176556,196.79,196.77,0.76]
[1738922733145,18.60627556,196.78,196.77,0.76]
[1738922733750,0.12549,196.77,196.75,0.76]
[1738922733955,18.73176556,196.76,196.75,0.76]
[1738922734173,0.25098,196.75,196.73,0.76]
[1738922734474,0.25098,196.75,196.69,0.76]
[1738922734475,15.23732853,196.73,196.69,0.76]
[1738922734631,5.20879,196.72,196.71,0.76]
[1738922734830,18.73176556,196.72,196.71,0.76]
[1738922735146,0.12549,196.71,196.7,0.76]
[1738922735344,18.73176556,196.71,196.7,0.76]
[1738922735854,18.73176556,196.71,196.69,0.76]
[1738922736043,37.46353112,196.7,196.68,0.79]
[1738922736230,32.26910409,196.69,196.68,0.03]
[1738922736631,30.06048275,196.69,196.68,0.79]
[1738922736836,30.06048275,196.69,196.68,0.03]
[1738922737060,48.55643128,196.69,196.68,0.03]
[1738922737355,35.14458275,196.69,196.68,0.03]
[1738922737553,48.55643128,196.69,196.68,0.03]
[1738922739347,29.93499275,196.69,196.68,0.79]
[1738922739652,43.47233128,196.69,196.68,0.03]
[1738922739850,13.66282853,196.68,196.64,0.03]
[1738922740463,43.47233128,196.65,196.64,0.03]
[1738922741334,48.55743128,196.65,196.64,0.03]
[1738922741534,35.14558275,196.65,196.64,0.79]
[1738922741735,35.14558275,196.65,196.64,0.03]
[1738922742238,30.06048275,196.65,196.64,0.79]
[1738922742456,30.06048275,196.65,196.64,0.03]
[1738922742753,29.93499275,196.65,196.64,0.79]
[1738922742968,29.80950275,196.65,196.64,0.79]
[1738922743559,29.93499275,196.65,196.64,0.79]
[1738922743859,29.80950275,196.65,196.64,0.79]
[1738922744243,29.80950275,196.66,196.65,0.76]
[1738922744460,29.80950275,196.68,196.66,0.76]
[1738922744672,29.80950275,196.68,196.64,142.3154]
[1738922744673,29.80950275,196.68,196.67,0.76]
[1738922744840,1.5745,196.73,196.67,0.76]
[1738922744841,29.80950275,196.69,196.67,0.76]
[1738922745033,29.80950275,196.7,196.68,0.76]
[1738922745263,29.80950275,196.71,196.7,0.76]
[1738922746152,29.80950275,196.72,196.7,5.8438]
[1738922746346,29.80950275,196.72,196.71,0.76]
[1738922747145,29.80950275,196.74,196.71,0.76]
[1738922747367,29.80950275,196.75,196.73,0.76]
[1738922748183,29.80950275,196.75,196.74,0.76]
[1738922748383,29.87250275,196.78,196.76,0.76]
[1738922748677,29.87250275,196.78,196.77,0.76]
[1738922749698,29.87250275,196.78,196.77,5.842]
[1738922749880,0.063,196.78,196.77,5.842]
[1738922750351,0.063,196.78,196.77,0.76]
[1738922750541,29.87250275,196.78,196.77,0.76]
[1738922751648,35.20528275,196.78,196.77,0.76]
[1738922752948,30.12348275,196.78,196.77,0.76]
[1738922753744,0.12549,196.77,196.76,0.76]
[1738922753947,29.93499275,196.77,196.76,0.76]
[1738922754985,29.80950275,196.77,196.76,0.76]
[1738922755266,29.93499275,196.77,196.76,0.76]
[1738922755447,35.14248275,196.77,196.75,0.76]
[1738922755645,29.93499275,196.76,196.75,0.76]
[1738922755873,29.93499275,196.76,196.73,0.76]
[1738922755874,0.12549,196.75,196.73,0.76]
[1738922756069,0.12549,196.73,196.71,0.76]
[1738922756256,29.93499275,196.72,196.71,0.76]
[1738922756581,29.80950275,196.72,196.71,0.76]
[1738922761466,29.80950275,196.77,196.76,0.76]
[1738922762059,0.063,196.78,196.77,0.76]
[1738922762353,29.87250275,196.78,196.77,0.76]
[1738922763072,29.87250275,196.78,196.75,142.2825]
[1738922763073,0.12549,196.77,196.75,0.76]
[1738922763252,29.93499275,196.76,196.75,0.76]
[1738922763667,5.20799,196.75,196.74,0.76]
[1738922763867,48.55483128,196.75,196.71,0.76]
[1738922764070,29.93499275,196.72,196.71,0.76]
[1738922764857,64.9532855,196.72,196.71,0.76]
[1738922765049,0.25098,196.71,196.68,0.03]
[1738922765250,29.93499275,196.69,196.68,0.79]
[1738922765856,29.80950275,196.69,196.68,0.79]
[1738922766983,29.93499275,196.69,196.68,0.79]
[1738922768271,29.80950275,196.69,196.68,0.79]
[1738922768696,29.93499275,196.69,196.68,0.79]
[1738922768866,29.80950275,196.69,196.68,0.79]
[1738922772807,29.80950275,196.71,196.7,0.76]
[1738922774303,29.80950275,196.71,196.7,20.76]
[1738922774510,29.80950275,196.76,196.75,0.76]
[1738922774671,29.80950275,196.77,196.76,0.76]
[1738922775173,29.93499275,196.77,196.76,0.76]
[1738922775383,0.25098,196.76,196.75,0.76]
[1738922775703,0.12549,196.75,196.74,0.26]
[1738922776003,30.06048275,196.75,196.74,0.26]
[1738922776386,35.14298275,196.75,196.74,0.26]
[1738922776587,0.12549,196.74,196.73,0.26]
[1738922776796,0.12549,196.73,196.71,0.26]
[1738922776978,59.7444955,196.72,196.71,0.26]
[1738922777177,0.25098,196.71,196.68,0.03]
[1738922777393,29.93499275,196.69,196.68,0.29]
[1738922777909,30.06048275,196.69,196.68,0.29]
[1738922778584,35.14458275,196.69,196.68,0.29]
[1738922778786,30.06048275,196.69,196.68,0.29]
[1738922779510,29.80950275,196.69,196.68,0.29]
[1738922780281,29.80950275,196.69,196.68,137.49]
[1738922781985,30.06048275,196.69,196.68,0.29]
[1738922782234,48.55643128,196.69,196.68,0.03]
[1738922782506,13.66282853,196.68,196.66,0.26]
[1738922782678,13.66282853,196.68,196.65,0.26]
[1738922782682,29.93499275,196.67,196.65,0.26]
[1738922782885,29.93499275,196.66,196.65,0.26]
[1738922784202,35.01989275,196.66,196.65,0.26]
[1738922785403,29.93499275,196.66,196.65,0.26]
[1738922785602,29.80950275,196.66,196.65,0.26]
[1738922786189,29.93499275,196.66,196.65,0.26]
[1738922786997,29.80950275,196.66,196.65,0.29]
[1738922787400,29.80950275,196.68,196.67,20.26]